bitfinex-derivatives/quotes_SOLF0:USTF0_20250505
["timestamp","ask_amount","ask_price","bid_price","bid_amount"]
[1746411016568,8.63972277,143.04,142.92,29.44]
[1746411016766,6.9935,142.99,142.93,6.9957]
[1746411016962,29.44,143.01,142.92,29.44]
[1746411017369,36.4322,143.01,142.92,29.44]
[1746411017870,6.9922,143.01,142.92,29.44]
[1746411018073,29.42,143.03,142.92,29.44]
[1746411018467,6.992,143.02,142.92,29.44]
[1746411018771,29.42,143.03,142.92,29.44]
[1746411019264,29.42,143.06,142.92,29.44]
[1746411019771,6.9915,143.03,142.97,6.9937]
[1746411019963,6.9915,143.03,142.97,36.4137]
[1746411020165,29.42,143.06,142.97,29.42]
[1746411020574,6.9908,143.04,142.98,6.9935]
[1746411020767,6.9908,143.04,142.97,29.42]
[1746411021072,6.9903,143.05,142.99,6.993]
[1746411021273,35.2728,143.07,142.97,29.42]
[1746411021472,2.0517,143.07,142.98,20.33751493]
[1746411021866,29.16,143.1,142.98,20.33751493]
[1746411022066,29.16,143.1,142.98,574.37751493]
[1746411022562,2.039,143.12,143.01,14.01671493]
[1746411022771,2.039,143.12,143.07,6.9887]
[1746411023166,2.039,143.12,143.06,29.16]
[1746411023373,2.0358,143.13,143.06,29.16]
[1746411024274,9.0222,143.13,143.07,6.9888]
[1746411024574,29.16,143.16,143.06,29.16]
[1746411024771,6.989,143.08,143.03,29.16]
[1746411024975,45.31741493,143.12,143.03,29.16]
[1746411025176,14.01671493,143.09,142.98,4.1887]
[1746411025370,6.9921,143.02,142.96,29.16]
[1746411025570,33.2672,143.08,142.96,29.16]
[1746411028076,33.2672,143.08,142.99,6.993]
[1746411028278,33.2672,143.08,142.96,29.16]
[1746411028577,33.2672,143.08,142.98,6.9935]
[1746411028779,14.01671493,143.06,142.96,29.16]
[1746411029179,14.01671493,143.06,142.96,6.9942]
[1746411029371,14.01671493,143.06,142.93,31.2837]
[1746411029571,14.01671493,143.03,142.93,29.14]
[1746411029775,371.9665,143.2,142.98,14.00578469]
[1746411030073,1.9956,143.09,142.96,29.14]
[1746411030378,33.2616,143.08,142.99,6.9927]
[1746411030580,14.00578469,143.07,142.96,29.14]
[1746411031283,6.992,143.02,142.97,6.9936]
[1746411031676,29.14,143.03,142.96,29.14]
[1746411031974,29.14,143.07,142.96,29.14]
[1746411032980,6.9903,143.05,143.0,6.9922]
[1746411033280,6.9903,143.05,142.96,29.14]
[1746411033481,6.9907,143.04,142.99,6.9928]
[1746411033673,29.14,143.07,142.96,29.14]
[1746411034075,29.14,143.07,142.97,6.9939]
[1746411035384,6.9924,143.01,142.97,6.9939]
[1746411035879,6.9931,142.99,142.91,555.8726]
[1746411036180,6.9931,142.99,142.92,29.14]
[1746411036482,29.14,143.03,142.92,29.14]
[1746411036681,29.14,143.03,142.93,6.9957]
[1746411036878,29.14,143.03,142.92,29.14]
[1746411037084,14.00578469,143.0,142.88,29.14]
[1746411037378,35.4896,142.99,142.88,6.9983]
[1746411037575,6.9964,142.93,142.88,6.9983]
[1746411038077,6.9966,142.92,142.88,6.9983]
[1746411038285,29.14,142.95,142.87,6.9989]
[1746411038979,29.14,142.95,142.83,582.88]
[1746411039180,6.9982,142.89,142.83,582.88]
[1746411039373,6.9982,142.89,142.85,6.9998]
[1746411039674,29.14,142.95,142.83,582.88]
[1746411039978,29.14,142.95,142.83,585.0452]
[1746411040185,6.9959,142.94,142.84,14.00578469]
[1746411040686,6.9959,142.94,142.88,6.9983]
[1746411040884,29.14,142.95,142.88,6.9983]
[1746411041288,29.14,142.95,142.87,29.14]
[1746411041481,6.3496,142.99,142.87,43.14578469]
[1746411041682,31.2484,142.99,142.87,43.14578469]
[1746411041886,6.994,142.98,142.9,14.00578469]
[1746411042088,582.9,143.02,142.91,29.16]
[1746411042386,582.9,143.02,142.95,6.9946]
[1746411042587,6.9921,143.01,142.95,6.9946]
[1746411043186,6.9926,143.0,142.95,6.9946]
[1746411043381,582.9,143.02,142.93,6.9957]
[1746411043577,582.9,143.02,142.91,35.4365]
[1746411043782,6.9931,143.0,142.94,6.9952]
[1746411044290,6.9931,143.0,142.94,6.9951]
[1746411044986,29.16,143.02,142.91,35.4365]
[1746411045183,29.16,143.02,142.93,14.00578469]
[1746411045384,2.1449,143.05,142.96,14.00578469]
[1746411045587,29.16,143.08,142.97,29.16]
[1746411045888,29.16,143.08,142.98,31.1427]
[1746411046091,36.1487,143.08,142.98,31.1427]
[1746411046289,36.1487,143.08,142.99,3.9608]
[1746411046803,6.9883,143.09,143.0,14.00578469]
[1746411047181,6.9883,143.09,143.01,6.9917]
[1746411047390,6.9883,143.09,143.02,29.14]
[1746411047583,29.16,143.12,142.99,33.1008]
[1746411047784,29.16,143.12,142.99,31.1342]
[1746411047985,14.00578469,143.11,142.99,31.1342]
[1746411048488,553.88,143.16,143.02,14.00578469]
[1746411048686,35.1534,143.15,143.03,29.14]
[1746411048887,35.1534,143.15,143.03,36.1307]
[1746411049591,6.9886,143.09,143.03,36.1307]
[1746411049991,6.9886,143.09,143.04,6.9906]
[1746411050292,6.9889,143.08,143.03,29.14]
[1746411050496,35.1534,143.15,143.03,29.14]
[1746411050794,6.9881,143.1,143.03,29.14]
[1746411051191,6.9881,143.1,143.04,6.9903]
[1746411051592,6.9883,143.09,143.03,29.14]
[1746411051797,35.1534,143.15,143.03,29.14]
[1746411052298,35.1534,143.15,143.04,6.9903]
[1746411052595,35.1534,143.15,143.03,29.14]
[1746411052890,29.34,143.14,143.03,29.14]
[1746411053187,29.34,143.14,143.03,31.2128]
[1746411053188,6.9871,143.12,143.03,31.2128]
[1746411053999,6.9864,143.13,143.05,14.00578469]
[1746411054194,6.9864,143.13,143.06,2.0398]
[1746411054390,6.9864,143.13,143.07,29.34]
[1746411055196,6.9864,143.13,143.08,6.9883]
[1746411055587,6.986,143.14,143.07,29.34]
[1746411055792,6.986,143.14,143.07,31.4717]
[1746411055992,6.9862,143.14,143.07,31.4717]
[1746411056297,29.34,143.17,143.07,31.4717]
[1746411056796,29.34,143.17,143.07,29.34]
[1746411057195,6.9872,143.12,143.07,36.3292]
[1746411057590,29.34,143.17,143.07,36.3292]
[1746411057795,6.9871,143.12,143.07,36.3292]
[1746411057997,29.32,143.13,143.04,29.32]
[1746411058191,1.9793,143.11,143.03,2.1317]
[1746411058392,6.9897,143.06,143.01,582.92]
[1746411058593,6.9897,143.06,143.02,6.9915]
[1746411058894,31.4396,143.1,143.01,582.92]
[1746411059094,6.9901,143.06,143.01,36.312]
[1746411059290,31.4396,143.1,143.01,29.32]
[1746411059595,31.4396,143.1,143.02,6.9913]
[1746411060097,31.4396,143.1,143.01,29.32]
[1746411060591,6.9907,143.04,143.01,29.32]
[1746411060797,31.4396,143.1,142.98,29.32]
[1746411061190,6.9915,143.03,142.99,6.993]
[1746411061591,29.32,143.06,142.98,29.32]
[1746411062298,29.32,143.06,142.96,1.9756]
[1746411062499,1.9661,143.05,142.95,38.4432]
[1746411062898,6.993,143.0,142.96,6.9945]
[1746411063197,1.9661,143.05,142.96,14.00578469]
[1746411063399,36.31,143.06,142.96,18.09178469]
[1746411063599,36.31,143.06,143.01,6.9921]
[1746411063896,6.989,143.08,143.0,29.32]
[1746411064097,29.32,143.09,143.01,29.32]
[1746411064298,29.32,143.09,143.02,31.3036]
[1746411064595,29.32,143.09,143.03,6.9911]
[1746411064998,29.32,143.09,143.02,31.3036]
[1746411065393,29.32,143.09,142.99,29.32]
[1746411065898,6.9904,143.05,143.0,6.9925]
[1746411066100,2.1196,143.1,143.0,14.00578469]
[1746411066498,31.2861,143.13,143.03,14.00578469]
[1746411066700,31.2861,143.13,143.04,31.4955]
[1746411067095,6.9881,143.1,143.05,6.9901]
[1746411067400,31.2861,143.13,143.04,31.4955]
[1746411067596,31.2861,143.13,143.04,33.6296]
[1746411067795,6.9877,143.1,143.05,6.99]
[1746411068399,6.9886,143.09,143.04,40.6201]
[1746411068599,31.2861,143.13,143.04,33.6296]
[1746411069004,6.9874,143.11,143.06,6.9895]
[1746411069998,31.4536,143.16,143.04,35.8113]
[1746411070300,31.4536,143.16,143.06,14.00578469]
[1746411071199,29.32,143.19,143.06,14.00578469]
[1746411071801,29.32,143.19,143.04,35.8113]
[1746411071992,29.32,143.19,143.06,14.00578469]
[1746411072188,1.9665,143.18,143.06,14.00578469]
[1746411072394,1.9665,143.18,143.12,6.9867]
[1746411072599,1.9665,143.18,143.12,36.3067]
[1746411073295,1.9665,143.18,143.12,29.32]
[1746411073500,29.32,143.24,143.15,14.00578469]
[1746411074003,29.32,143.24,143.16,29.32]
[1746411075298,29.32,143.24,143.13,35.5451]
[1746411075903,6.982,143.22,143.17,6.9839]
[1746411076603,6.9812,143.24,143.15,14.00578469]
[1746411076799,2.0587,143.25,143.16,29.32]
[1746411077103,6.9808,143.25,143.19,6.9832]
[1746411077301,29.32,143.27,143.19,6.9832]
[1746411077602,29.32,143.27,143.16,29.32]
[1746411077802,6.981,143.24,143.19,6.9829]
[1746411078106,6.981,143.24,143.16,29.32]
[1746411078404,6.9805,143.25,143.2,6.9828]
[1746411078904,6.9805,143.25,143.16,29.32]
[1746411079310,36.2995,143.27,143.18,14.00578469]
[1746411079500,36.2995,143.27,143.22,6.9817]
[1746411079697,2.0421,143.29,143.2,29.32]
[1746411079906,6.9799,143.26,143.2,29.32]
[1746411080106,6.9799,143.26,143.2,36.3024]
[1746411080607,6.9795,143.27,143.2,29.32]
[1746411080808,2.0421,143.29,143.2,29.32]
[1746411082613,2.0421,143.29,143.17,28.94]
[1746411082911,14.00578469,143.28,143.16,28.94]
[1746411083111,14.00578469,143.28,143.17,6.9842]
[1746411083412,14.00578469,143.28,143.16,28.94]
[1746411084111,6.9822,143.22,143.17,6.9841]
[1746411084306,28.94,143.24,143.13,6.2251]
[1746411084515,33.1749,143.23,143.13,4.1486]
[1746411084706,2.134,143.22,143.15,6.9851]
[1746411084904,2.134,143.22,143.13,4.1486]
[1746411085512,2.134,143.22,143.13,6.2336]
[1746411085814,6.9837,143.19,143.15,6.9851]
[1746411086614,6.984,143.18,143.14,6.9857]
[1746411086915,2.134,143.22,143.13,6.2336]
[1746411087710,2.134,143.22,143.13,4.1486]
[1746411087915,2.134,143.22,143.12,35.9264]
[1746411088116,2.134,143.22,143.12,28.94]
[1746411088616,2.134,143.22,143.13,6.9861]
[1746411090216,6.9842,143.18,143.13,6.9861]
[1746411091418,6.9834,143.19,143.12,28.94]
[1746411091607,6.9834,143.19,143.1,2.05]
[1746411091813,2.134,143.22,143.14,6.9857]
[1746411092308,6.9843,143.18,143.14,6.9857]
[1746411094620,6.9835,143.19,143.14,6.9857]
[1746411094820,6.9835,143.19,143.15,6.9853]
[1746411095321,6.9835,143.19,143.14,6.9856]
[1746411095820,6.984,143.18,143.14,6.9856]
[1746411096819,6.9844,143.17,143.13,35.9262]
[1746411097119,2.134,143.22,143.13,35.9262]
[1746411097425,2.134,143.22,143.14,6.9857]
[1746411098224,6.9842,143.18,143.14,6.9857]
[1746411098823,2.134,143.22,143.13,28.94]
[1746411099327,6.9844,143.17,143.13,35.9259]
[1746411099818,2.134,143.22,143.13,35.9259]
[1746411100023,2.134,143.22,143.1,30.99]
[1746411100222,2.134,143.22,143.1,39.59452575]
[1746411100421,6.9836,143.19,143.15,6.985]
[1746411100620,2.134,143.22,143.14,28.94]
[1746411101110,6.9841,143.18,143.14,35.9256]
[1746411101724,6.9841,143.18,143.15,6.9853]
[1746411101926,2.134,143.22,143.14,28.94]
[1746411102224,2.134,143.22,143.16,6.9844]
[1746411102424,6.9831,143.2,143.16,6.9844]
[1746411102723,6.9831,143.2,143.14,28.94]
[1746411103830,6.9825,143.21,143.14,28.94]
[1746411104030,28.94,143.26,143.14,37.54261639]
[1746411104330,35.0247,143.26,143.14,37.54261639]
[1746411104531,6.9826,143.21,143.14,37.54261639]
[1746411104727,6.9826,143.21,143.16,6.9847]
[1746411105030,6.9826,143.21,143.14,37.54261639]
[1746411105226,6.9826,143.21,143.16,6.9847]
[1746411105531,6.9829,143.2,143.16,6.9847]
[1746411106031,6.9833,143.19,143.14,28.94]
[1746411106728,6.9833,143.19,143.15,6.9851]
[1746411108035,6.983,143.2,143.15,6.9851]
[1746411108536,6.983,143.2,143.14,28.94]
[1746411108537,6.983,143.2,143.16,6.9848]
[1746411109635,32.9817,143.26,143.14,37.54261639]
[1746411110031,32.9817,143.26,143.17,8.60261639]
[1746411110032,30.993,143.26,143.17,8.60261639]
[1746411110233,2.0672,143.28,143.18,31.0011]
[1746411110429,30.996,143.29,143.18,34.9627]
[1746411110630,6.9797,143.27,143.22,6.9815]
[1746411111235,30.996,143.29,143.22,6.9815]
[1746411111427,30.996,143.29,143.2,6.9824]
[1746411111627,30.996,143.29,143.18,34.9627]
[1746411111835,6.9803,143.26,143.18,34.9627]
[1746411112031,30.996,143.29,143.21,6.9823]
[1746411112232,30.996,143.29,143.18,34.9627]
[1746411112439,30.996,143.29,143.22,6.9815]
[1746411112837,6.9803,143.26,143.18,34.9627]
[1746411113138,30.996,143.29,143.18,34.9627]
[1746411113634,6.9806,143.25,143.2,6.9824]
[1746411113840,30.996,143.29,143.18,34.9627]
[1746411114338,30.996,143.29,143.2,6.9828]
[1746411115138,6.9807,143.25,143.21,6.9823]
[1746411115635,6.9809,143.24,143.21,6.9823]
[1746411115838,30.996,143.29,143.18,6.0227]
[1746411116540,30.996,143.29,143.21,6.9822]
[1746411116739,6.9807,143.25,143.21,6.9822]
[1746411117039,30.996,143.29,143.21,6.9822]
[1746411117240,6.9807,143.25,143.21,6.9822]
[1746411117640,30.996,143.29,143.18,6.0227]
[1746411118143,6.9801,143.26,143.22,6.9817]
[1746411118540,6.9801,143.26,143.21,28.42]
[1746411118842,6.9796,143.27,143.23,6.9813]
[1746411119331,6.9796,143.27,143.22,6.9815]
[1746411120040,6.9801,143.26,143.22,6.9815]
[1746411120847,6.9796,143.27,143.23,6.9813]
[1746411121442,6.9796,143.27,143.24,6.9808]
[1746411121642,6.979,143.28,143.24,6.9808]
[1746411123450,6.979,143.28,143.21,28.42]
[1746411123451,2.0167,143.32,143.21,28.42]
[1746411123849,28.42,143.34,143.23,8.60261639]
[1746411124047,28.42,143.34,143.24,2.1084]
[1746411124248,28.42,143.34,143.25,28.42]
[1746411124446,6.977,143.33,143.28,6.9786]
[1746411124747,6.977,143.33,143.25,32.5994]
[1746411125354,6.977,143.33,143.27,6.9791]
[1746411125551,6.977,143.33,143.25,32.5994]
[1746411125854,6.9772,143.32,143.25,32.5994]
[1746411126550,6.9772,143.32,143.26,6.9798]
[1746411126751,6.9772,143.32,143.25,32.5994]
[1746411127053,6.9772,143.32,143.27,6.9794]
[1746411127553,6.9772,143.32,143.28,6.9789]
[1746411127951,28.42,143.37,143.29,28.42]
[1746411128357,32.4535,143.4,143.29,28.42]
[1746411128745,32.4535,143.4,143.32,6.9769]
[1746411129041,6.9749,143.37,143.32,6.9769]
[1746411129354,32.4535,143.4,143.31,6.9774]
[1746411129547,32.4535,143.4,143.29,28.42]
[1746411129849,32.4535,143.4,143.32,6.9767]
[1746411130251,32.4535,143.4,143.33,28.42]
[1746411130954,6.977,143.32,143.3,28.42]
[1746411131251,32.4535,143.4,143.3,28.42]
[1746411131444,6.9768,143.33,143.3,28.42]
[1746411131956,32.4535,143.4,143.3,28.42]
[1746411132252,2.96781956,143.39,143.3,28.42]
[1746411132449,32.4535,143.4,143.3,28.42]
[1746411132649,2.9694693,143.39,143.3,28.42]
[1746411132851,32.4535,143.4,143.3,28.42]
[1746411133054,2.9699973,143.39,143.3,28.42]
[1746411133243,32.4535,143.4,143.3,28.42]
[1746411133446,2.97004505,143.39,143.3,28.42]
[1746411133742,32.4535,143.4,143.3,28.42]
[1746411133951,6.9763,143.34,143.3,35.3978]
[1746411134448,32.4535,143.4,143.31,6.9774]
[1746411134659,6.9757,143.35,143.31,6.9774]
[1746411135056,32.4535,143.4,143.3,28.42]
[1746411136157,32.4535,143.4,143.31,6.9775]
[1746411136363,32.4535,143.4,143.3,28.42]
[1746411136861,6.9763,143.34,143.3,35.3976]
[1746411137060,32.4535,143.4,143.3,28.42]
[1746411137255,6.9773,143.32,143.3,28.42]
[1746411137554,6.9773,143.32,143.28,6.9786]
[1746411138057,28.4,143.36,143.27,28.4]
[1746411138557,6.9764,143.34,143.27,28.4]
[1746411139058,6.9764,143.34,143.3,6.9777]
[1746411139760,6.9766,143.33,143.3,6.9777]
[1746411140060,6.9766,143.33,143.29,6.9783]
[1746411140452,28.4,143.36,143.27,28.4]
[1746411140453,28.4,143.39,143.27,28.4]
[1746411140648,28.4,143.39,143.3,6.9776]
[1746411140959,6.9761,143.34,143.3,6.9776]
[1746411141662,6.9746,143.37,143.32,6.9767]
[1746411141865,28.4,143.39,143.27,28.4]
[1746411142361,6.9768,143.33,143.28,6.9786]
[1746411142756,6.9768,143.33,143.28,6.9788]
[1746411142955,28.4,143.39,143.27,28.4]
[1746411143163,28.14,143.38,143.25,2.0551]
[1746411143365,8.60261639,143.34,143.18,1.9705]
[1746411143551,8.60261639,143.31,143.16,30.2214]
[1746411143862,2.038,143.3,143.17,6.9843]
[1746411144057,28.14,143.29,143.17,6.9843]
[1746411144451,8.60261639,143.28,143.16,30.2214]
[1746411144655,6.9828,143.21,143.16,30.2214]
[1746411144854,28.14,143.24,143.16,30.2214]
[1746411145363,6.9819,143.22,143.16,37.2061]
[1746411145662,28.14,143.24,143.16,37.2061]
[1746411146663,28.14,143.24,143.16,30.2214]
[1746411146866,28.14,143.24,143.16,28.14]
[1746411147059,2.1129,143.23,143.16,28.14]
[1746411147257,6.2649,143.23,143.16,28.14]
[1746411148163,13.2467,143.23,143.17,6.9841]
[1746411148462,6.9818,143.23,143.17,6.9841]
[1746411148663,28.14,143.24,143.16,28.14]
[1746411148964,35.1213,143.24,143.18,6.9837]
[1746411149652,35.1213,143.24,143.17,6.9843]
[1746411149653,28.14,143.24,143.17,6.9843]
[1746411150168,28.14,143.24,143.16,28.14]
[1746411150472,28.14,143.24,143.13,28.14]
[1746411150666,6.9834,143.19,143.13,28.14]
[1746411151061,6.9834,143.19,143.15,6.9853]
[1746411151365,6.9834,143.19,143.13,28.14]
[1746411151563,28.14,143.2,143.13,28.14]
[1746411151866,4.1654,143.19,143.1,28.14]
[1746411152167,6.9844,143.17,143.13,6.9861]
[1746411152572,13.1802,143.19,143.14,6.9854]
[1746411152967,6.1965,143.19,143.1,28.14]
[1746411153163,4.1654,143.19,143.11,2.0937]
[1746411153363,4.1654,143.19,143.15,6.9849]
[1746411153561,4.1654,143.19,143.11,2.0937]
[1746411153867,4.1654,143.19,143.14,6.9856]
[1746411154060,4.1654,143.19,143.11,2.0937]
[1746411154460,6.9851,143.16,143.1,28.14]
[1746411154663,4.1654,143.19,143.1,28.14]
[1746411155763,6.9847,143.17,143.13,6.9862]
[1746411155967,6.9847,143.17,143.1,28.14]
[1746411156265,6.9847,143.17,143.12,6.9866]
[1746411156660,6.9849,143.16,143.12,6.9866]
[1746411157067,6.9849,143.16,143.13,6.9862]
[1746411157667,6.984,143.18,143.1,28.14]
[1746411157866,1.986,143.19,143.1,28.14]
[1746411158571,28.14,143.2,143.1,28.14]
[1746411158862,28.14,143.2,143.16,6.9844]
[1746411159066,28.14,143.2,143.14,28.16]
[1746411159563,6.9834,143.19,143.14,28.16]
[1746411159768,28.14,143.2,143.14,28.16]
[1746411159967,28.14,143.2,143.1,28.16]
[1746411160365,6.984,143.18,143.1,28.16]
[1746411160669,28.14,143.2,143.1,28.16]
[1746411161171,35.1232,143.2,143.15,6.985]
[1746411161664,6.984,143.18,143.14,35.1456]
[1746411161871,6.984,143.18,143.14,28.16]
[1746411162173,6.9835,143.19,143.14,35.1454]
[1746411162668,35.1229,143.2,143.14,28.16]
[1746411163268,6.9834,143.19,143.14,28.16]
[1746411164469,6.9839,143.18,143.14,28.16]
[1746411164972,28.14,143.2,143.11,28.16]
[1746411165470,6.9855,143.15,143.11,35.1469]
[1746411165671,28.14,143.2,143.11,28.16]
[1746411166169,6.9866,143.13,143.09,6.9879]
[1746411166871,6.9866,143.13,143.1,6.9876]
[1746411168273,6.9858,143.14,143.1,6.9876]
[1746411168470,28.16,143.16,143.12,6.9867]
[1746411168671,28.16,143.19,143.09,8.60261639]
[1746411168871,35.1435,143.19,143.15,6.985]
[1746411169075,35.1435,143.19,143.13,28.16]
[1746411169278,30.3046,143.22,143.13,28.16]
[1746411169478,6.9837,143.19,143.15,6.985]
[1746411170083,30.3046,143.22,143.13,28.16]
[1746411170272,30.3046,143.22,143.14,4.046]
[1746411170577,6.9828,143.2,143.16,6.9846]
[1746411170773,30.3046,143.22,143.14,4.046]
[1746411171773,28.16,143.22,143.14,4.046]
[1746411171974,554.7919,143.24,143.14,4.046]
[1746411171975,2.0319,143.24,143.15,8.60261639]
[1746411172475,28.16,143.25,143.16,2.1638]
[1746411172677,28.16,143.25,143.17,28.38]
[1746411172878,6.9815,143.23,143.19,6.983]
[1746411173080,28.16,143.25,143.17,28.38]
[1746411173375,6.9816,143.23,143.17,28.38]
[1746411173881,6.9816,143.23,143.18,6.9835]
[1746411174081,6.9811,143.24,143.17,28.38]
[1746411175279,6.9811,143.24,143.2,6.9826]
[1746411175870,28.16,143.25,143.17,28.38]
[1746411176776,6.9827,143.21,143.17,35.364]
[1746411176980,28.16,143.25,143.17,35.364]
[1746411177175,2.1755,143.24,143.17,35.364]
[1746411177376,2.1755,143.24,143.17,6.984]
[1746411177583,2.1755,143.24,143.16,6.9846]
[1746411178074,2.1137,143.23,143.17,6.9842]
[1746411178583,6.9828,143.2,143.17,6.9842]
[1746411178777,2.1137,143.23,143.16,6.9846]
[1746411179183,6.9832,143.2,143.16,6.9846]
[1746411179582,2.1137,143.23,143.16,6.9846]
[1746411180981,2.1137,143.23,143.17,6.9843]
[1746411181685,6.9831,143.2,143.17,6.9843]
[1746411184682,6.9825,143.21,143.14,32.426]
[1746411185484,6.9825,143.21,143.16,6.9847]
[1746411185680,2.1137,143.23,143.14,32.426]
[1746411185884,2.1442,143.22,143.11,28.38]
[1746411186177,28.38,143.21,143.13,6.986]
[1746411186884,6.9846,143.17,143.13,6.986]
[1746411188789,28.38,143.21,143.11,28.38]
[1746411189586,6.9838,143.18,143.13,6.986]
[1746411190087,6.9838,143.18,143.14,6.9857]
[1746411190585,28.38,143.21,143.11,8.60261639]
[1746411190786,28.38,143.21,143.12,28.38]
[1746411191086,30.5555,143.24,143.14,8.60261639]
[1746411191277,28.38,143.24,143.15,2.1334]
[1746411191477,388.5368,143.27,143.16,28.38]
[1746411191690,6.9807,143.25,143.17,8.60261639]
[1746411191986,28.38,143.27,143.17,8.60261639]
[1746411192187,6.9796,143.27,143.22,6.9816]
[1746411192377,1.9844,143.3,143.21,28.38]
[1746411192584,24.0662652,143.31,143.22,2.0437]
[1746411192774,6.9783,143.3,143.25,6.98]
[1746411192981,6.9783,143.3,143.25,35.36]
[1746411193180,6.9783,143.3,143.25,28.38]
[1746411193378,24.0662652,143.31,143.25,28.38]
[1746411193585,24.0662652,143.31,143.27,6.9793]
[1746411193586,31.0438652,143.31,143.27,6.9793]
[1746411194087,24.0662652,143.31,143.27,6.9793]
[1746411194589,31.0440652,143.31,143.26,6.9798]
[1746411195190,6.9782,143.3,143.25,35.3603]
[1746411195387,24.0662652,143.31,143.25,35.3603]
[1746411195585,28.38,143.33,143.25,35.3603]
[1746411195791,28.38,143.33,143.26,6.9799]
[1746411196091,28.38,143.33,143.25,28.38]
[1746411196291,6.9783,143.3,143.25,28.38]
[1746411196485,28.38,143.33,143.25,35.3603]
[1746411197289,28.38,143.33,143.26,6.9797]
[1746411197791,8.60261639,143.43,143.27,6.9792]
[1746411197987,37.37932514,143.38,143.25,28.38]
[1746411198188,2.98202514,143.37,143.25,28.38]
[1746411198388,34.3973,143.38,143.25,28.38]
[1746411198587,34.3973,143.38,143.26,8.60261639]
[1746411198984,6.9764,143.34,143.3,6.9778]
[1746411199387,6.9764,143.34,143.29,35.3583]
[1746411201192,6.9766,143.33,143.29,35.3583]
[1746411201394,34.3973,143.38,143.29,28.38]
[1746411201592,34.3973,143.38,143.26,28.36]
[1746411202293,6.9776,143.31,143.27,6.9792]
[1746411202590,358.0,143.5,143.29,8.58251564]
[1746411202896,2.0491,143.42,143.31,6.9775]
[1746411203094,32.4448,143.41,143.3,30.1661]
[1746411203490,32.4448,143.41,143.3,37.144]
[1746411203896,6.9759,143.35,143.3,37.144]
[1746411204089,28.16,143.37,143.3,35.1379]
[1746411204290,6.9754,143.36,143.31,6.9773]
[1746411204491,28.16,143.37,143.31,6.9773]
[1746411204895,6.9753,143.36,143.31,6.9773]
[1746411205094,28.16,143.37,143.32,6.9769]
[1746411206203,6.9751,143.36,143.32,6.9769]
[1746411206698,28.16,143.37,143.33,6.9764]
[1746411206896,28.16,143.37,143.3,28.16]
[1746411207101,30.2493,143.4,143.3,28.16]
[1746411207396,30.2493,143.4,143.31,1.9858]
[1746411207598,6.9739,143.39,143.31,1.9858]
[1746411207988,37.2226,143.4,143.31,1.9858]
[1746411208295,552.78,143.51,143.35,8.58251564]
[1746411208505,6.972,143.43,143.36,28.16]
[1746411208799,4.1706,143.49,143.36,28.16]
[1746411209002,4.1706,143.49,143.4,6.973]